[Event "44th Chess Olympiad Women 2022"]
[Site "Chennai"]
[Date "2022.07.31"]
[Round "3.34"]
[White "Gitu, Paula-Alexandra"]
[Black "Shaba, Linda Dalitso"]
[Result "0-1"]
[WhiteElo "2109"]
[BlackElo "1658"]
[Annotator "RC"]
[PlyCount "150"]
[EventDate "2022.??.??"]
[TimeControl "60"]

1. e4 {[%emt 0:00:02]} e6 {[%emt 0:00:06]} 2. d4 {[%emt 0:00:03]} d5 {[%emt 0:
00:00]} 3. Nd2 {[%emt 0:00:04]} Nf6 {[%emt 0:00:06]} 4. e5 {[%emt 0:00:54]}
Nfd7 {[%emt 0:00:11]} 5. f4 {[%emt 0:00:48]} c5 {[%emt 0:00:07]} 6. c3 {
[%emt 0:00:07]} Nc6 {[%emt 0:00:10]} 7. Ndf3 {[%emt 0:01:01]} Be7 {[%emt 0:00:
00]} 8. Bd3 {[%emt 0:01:00]} cxd4 {[%emt 0:01:12]} 9. cxd4 {[%emt 0:00:08]} Nb4
{[%emt 0:01:58]} 10. Bb1 {[%emt 0:01:51]} Nb6 {[%emt 0:01:16]} 11. Ne2 {
[%emt 0:01:06]} Bd7 {[%emt 0:00:35]} 12. a3 {[%emt 0:00:53]} Nc6 {[%emt 0:00:
00]} 13. O-O {[%emt 0:01:27]} a5 {[%emt 0:01:21]} 14. a4 {[%emt 0:10:24]} Nb4 {
[%emt 0:03:04]} 15. Ng3 {[%emt 0:04:41]} g6 {[%emt 0:01:27]} 16. b3 {[%emt 0:
00:00]} O-O {[%emt 0:12:32]} 17. Ng5 {[%emt 0:09:54]} Rc8 {[%emt 0:05:39]} 18.
Bd2 {[%emt 0:31:46]} Rc6 {[%emt 0:09:09]} 19. Qg4 {[%emt 0:03:58]} Nc8 {
[%emt 0:14:37]} 20. f5 {[%emt 0:07:18]} exf5 {[%emt 0:04:51]} 21. Qh4 {[%emt 0:
00:00]} h5 {[%emt 0:24:22]} 22. Nxh5 {[%emt 0:04:40]} gxh5 {[%emt 0:00:40]} 23.
Qxh5 {[%emt 0:00:36]} Bxg5 {[%emt 0:00:23]} 24. Bxg5 {[%emt 0:00:04]} Qb6 {
[%emt 0:00:38]} 25. Qh4 {[%emt 0:00:32]} f6 {[%emt 0:07:53]} 26. exf6 {[%emt 0:
00:00]} Rcxf6 {[%emt 0:02:24]} 27. Bxf6 {[%emt 0:00:11]} Qxf6 {[%emt 0:01:01]}
28. Qg3+ {[%emt 0:00:54]} Qg7 {[%emt 0:00:45]} 29. Qf4 {[%emt 0:01:03]} Nc6 {
[%emt 0:00:54]} 30. Rd1 {[%emt 0:00:35]} N8e7 {[%emt 0:01:58]} 31. Ra2 {
[%emt 0:00:27]} Ng6 {[%emt 0:00:46]} 32. Qd6 {[%emt 0:00:09]} Qf7 {[%emt 0:00:
00]} 33. Rf2 {[%emt 0:00:42]} Qe6 {[%emt 0:01:15]} 34. Qg3 {[%emt 0:00:43]} Rf6
{[%emt 0:00:35]} 35. h4 {[%emt 0:00:26]} Kf7 {[%emt 0:00:21]} 36. h5 {[%emt 0:
00:00]} Nge7 {[%emt 0:00:16]} 37. Rf4 {[%emt 0:00:29]} Qe2 {[%emt 0:00:32]} 38.
Qf3 {[%emt 0:00:34]} Qxf3 {[%emt 0:00:55]} 39. Rxf3 {[%emt 0:00:01]} Kg7 {
[%emt 0:00:17]} 40. Rf4 {[%emt 0:00:18]} Nc8 {[%emt 0:00:27]} 41. Rdf1 {
[%emt 0:30:20]} Nd6 {[%emt 0:30:03]} 42. g4 {[%emt 0:01:02]} Kh6 {[%emt 0:00:
00]} 43. Kg2 {[%emt 0:00:00]} Kg5 {[%emt 0:00:00]} 44. Bd3 {[%emt 0:00:00]} Ne7
{[%emt 0:00:00]} 45. Kg3 {[%emt 0:00:00]} Rh6 {[%emt 0:00:00]} 46. Re1 {
[%emt 0:00:00]} Nc6 {[%emt 0:00:00]} 47. gxf5 {[%emt 0:00:00]} Bxf5 {[%emt 0:
00:00]} 48. Kf3 {[%emt 0:03:20]} Be4+ {[%emt 0:00:00]} 49. Bxe4 {[%emt 0:00:01]
} dxe4+ {[%emt 0:00:00]} 50. Ke3 {[%emt 0:00:05]} Nf5+ {[%emt 0:00:00]} 51.
Rxf5+ {[%emt 0:00:11]} Kxf5 {[%emt 0:00:00]} 52. Rf1+ {[%emt 0:00:02]} Ke6 {
[%emt 0:01:19]} 53. Kxe4 {[%emt 0:00:02]} Rxh5 {[%emt 0:01:36]} 54. Rf4 {
[%emt 0:02:40]} Nb4 {[%emt 0:01:40]} 55. Rg4 {[%emt 0:00:24]} Rh1 {[%emt 0:00:
00]} 56. Rg7 {[%emt 0:00:29]} Re1+ {[%emt 0:00:24]} 57. Kf3 {[%emt 0:00:21]} b6
{[%emt 0:00:20]} 58. Rg6+ {[%emt 0:00:06]} Kd5 {[%emt 0:00:34]} 59. Rxb6 {
[%emt 0:00:02]} Kxd4 {[%emt 0:00:11]} 60. Rb5 {[%emt 0:00:37]} Re5 {[%emt 0:00:
00]} 61. Rxe5 {[%emt 0:00:20]} Kxe5 {[%emt 0:00:25]} 62. Ke3 {[%emt 0:00:01]}
Kd5 {[%emt 0:00:08]} 63. Ke2 {[%emt 0:00:58]} Ke4 {[%emt 0:00:06]} 64. Kd2 {
[%emt 0:00:35]} Kd4 {[%emt 0:00:02]} 65. Kc1 {[%emt 0:01:05]} Kc3 {[%emt 0:00:
00]} 66. Kb1 {[%emt 0:00:02]} Kxb3 {[%emt 0:00:06]} 67. Ka1 {[%emt 0:00:25]}
Nd5 {[%emt 0:00:35]} 68. Kb1 {[%emt 0:00:40]} Nc3+ {[%emt 0:00:06]} 69. Ka1 {
[%emt 0:00:02]} Nxa4 {[%emt 0:00:07]} 70. Kb1 {[%emt 0:00:01]} Nb6 {[%emt 0:00:
00]} 71. Ka1 {[%emt 0:01:19]} a4 {[%emt 0:00:06]} 72. Kb1 {[%emt 0:00:02]} a3 {
[%emt 0:00:19]} 73. Ka1 {[%emt 0:00:02]} Nd5 {[%emt 0:00:12]} 74. Kb1 {[%emt 0:
00:00]} Nb4 {[%emt 0:00:27]} 75. Ka1 {[%emt 0:00:48]} Nc2+ {[%emt 0:00:49]} 0-1

[Event "44th Chess Olympiad Women 2022"]
[Site "Chennai"]
[Date "2022.07.31"]
[Round "3.34"]
[White "Makwena, Christine"]
[Black "Petrenko, Svetlana"]
[Result "0-1"]
[WhiteElo "1609"]
[BlackElo "2029"]
[Annotator "NA RC"]
[PlyCount "80"]
[EventDate "2022.??.??"]
[TimeControl "60"]

1. d4 {[%emt 0:00:01]} Nf6 {[%emt 0:00:07]} 2. Bg5 {[%emt 0:00:17]} d5 {
[%emt 0:00:42]} 3. Bxf6 {[%emt 0:00:26]} exf6 {[%emt 0:00:07]} 4. e3 {[%emt 0:
00:00]} Bd6 {[%emt 0:00:32]} 5. Bd3 {[%emt 0:00:11]} c6 {[%emt 0:00:41]} 6. Nd2
{[%emt 0:01:37]} f5 {[%emt 0:01:37]} 7. Ngf3 {[%emt 0:01:18]} O-O {[%emt 0:00:
00]} 8. c4 {[%emt 0:00:53]} Na6 {[%emt 0:04:20]} 9. a3 {[%emt 0:01:40]} dxc4 {
[%emt 0:02:39]} 10. Nxc4 {[%emt 0:00:46]} Bb8 {[%emt 0:02:45]} 11. O-O {
[%emt 0:01:09]} Nc7 {[%emt 0:01:10]} 12. Qc2 {[%emt 0:00:38]} g6 {[%emt 0:00:
00]} 13. Rad1 {[%emt 0:02:13]} Nd5 {[%emt 0:04:34]} 14. Rfe1 {[%emt 0:01:49]}
Be6 {[%emt 0:11:33]} 15. b4 {[%emt 0:03:29]} Bc7 {[%emt 0:01:39]} 16. Ncd2 {
[%emt 0:00:42]} a5 {[%emt 0:04:19]} 17. b5 {[%emt 0:03:03]} cxb5 {[%emt 0:00:
00]} 18. Bxb5 {[%emt 0:01:22]} Rc8 {[%emt 0:00:23]} 19. Qb2 {[%emt 0:00:46]}
Nc3 {[%emt 0:08:31]} 20. Rc1 {[%emt 0:01:03]} Nxb5 {[%emt 0:00:06]} 21. Qxb5 {
[%emt 0:00:24]} Bd5 {[%emt 0:00:05]} 22. Rc5 {[%emt 0:03:28]} Bc6 {[%emt 0:00:
00]} 23. Qb2 {[%emt 0:01:46]} Bd6 {[%emt 0:09:06]} 24. Rc3 {[%emt 0:02:12]} Qe7
{[%emt 0:01:42]} 25. Rec1 {[%emt 0:02:01]} Rb8 {[%emt 0:02:10]} 26. Qa2 {
[%emt 0:05:57]} Rfd8 {[%emt 0:06:56]} 27. Ne1 {[%emt 0:11:14]} Bd5 {[%emt 0:00:
00]} 28. Qb2 {[%emt 0:04:56]} b5 {[%emt 0:00:35]} 29. Rc5 {[%emt 0:05:36]} Bxc5
{[%emt 0:01:17]} 30. Rxc5 {[%emt 0:01:08]} Qb7 {[%emt 0:05:01]} 31. Nb3 {
[%emt 0:05:44]} Ra8 {[%emt 0:09:09]} 32. Nd2 {[%emt 0:03:06]} b4 {[%emt 0:00:
00]} 33. Ndf3 {[%emt 0:01:55]} bxa3 {[%emt 0:02:04]} 34. Qxa3 {[%emt 0:00:15]}
a4 {[%emt 0:01:01]} 35. Ne5 {[%emt 0:01:13]} Qb3 {[%emt 0:01:54]} 36. Qc1 {
[%emt 0:00:54]} a3 {[%emt 0:00:11]} 37. Rc3 {[%emt 0:00:32]} Qb2 {[%emt 0:00:
00]} 38. N5d3 {[%emt 0:01:19]} Qxc1 {[%emt 0:00:13]} 39. Rxc1 {[%emt 0:00:18]}
a2 {[%emt 0:00:41]} 40. Ra1 {[%emt 0:00:05]} Rdb8 {[%emt 0:05:11]} 0-1

[Event "44th Chess Olympiad Women 2022"]
[Site "Chennai"]
[Date "2022.07.31"]
[Round "3.34"]
[White "Petricenco, Ana"]
[Black "Mudodo, Refiloe Hazel"]
[Result "1-0"]
[WhiteElo "1912"]
[BlackElo "1604"]
[Annotator "NA RC"]
[PlyCount "51"]
[EventDate "2022.??.??"]
[TimeControl "60"]

1. e4 {[%emt 0:00:05]} e6 {[%emt 0:00:24]} 2. d3 {[%emt 0:00:05]} d5 {[%emt 0:
00:00]} 3. Nd2 {[%emt 0:00:06]} Nf6 {[%emt 0:01:46]} 4. Ngf3 {[%emt 0:00:09]}
dxe4 {[%emt 0:01:04]} 5. dxe4 {[%emt 0:00:08]} b6 {[%emt 0:01:17]} 6. c3 {
[%emt 0:01:18]} Bb7 {[%emt 0:01:20]} 7. Qc2 {[%emt 0:00:10]} Nc6 {[%emt 0:00:
00]} 8. Be2 {[%emt 0:00:51]} a5 {[%emt 0:01:41]} 9. a4 {[%emt 0:01:55]} Be7 {
[%emt 0:02:02]} 10. O-O {[%emt 0:01:04]} O-O {[%emt 0:01:08]} 11. Rd1 {[%emt 0:
00:00]} Bc5 {[%emt 0:02:46]} 12. Nb3 {[%emt 0:05:18]} Qe7 {[%emt 0:02:00]} 13.
Bg5 {[%emt 0:03:58]} e5 {[%emt 0:03:34]} 14. Nxc5 {[%emt 0:02:02]} Qxc5 {
[%emt 0:05:34]} 15. Bxf6 {[%emt 0:03:41]} gxf6 {[%emt 0:00:45]} 16. Qd2 {
[%emt 0:06:36]} Kg7 {[%emt 0:01:16]} 17. Nh4 {[%emt 0:00:26]} Ne7 {[%emt 0:00:
00]} 18. Qd3 {[%emt 0:01:06]} Kh8 {[%emt 0:08:25]} 19. Qf3 {[%emt 0:01:18]} Kg7
{[%emt 0:05:50]} 20. Rd7 {[%emt 0:11:40]} Rad8 {[%emt 0:03:59]} 21. b4 {
[%emt 0:28:32]} axb4 {[%emt 0:09:31]} 22. cxb4 {[%emt 0:02:06]} Qxb4 {[%emt 0:
00:00]} 23. Rxe7 {[%emt 0:05:58]} Qc5 {[%emt 0:05:56]} 24. Nf5+ {[%emt 0:02:09]
} Kh8 {[%emt 0:03:48]} 25. Qg4 {[%emt 0:01:53]} Rg8 {[%emt 0:03:01]} 26. Qh4 {
[%emt 0:01:22]} 1-0

[Event "44th Chess Olympiad Women 2022"]
[Site "Chennai"]
[Date "2022.07.31"]
[Round "3.35"]
[White "Corrales Jimenez, Zenia"]
[Black "Kannappan, Sigappi"]
[Result "1/2-1/2"]
[WhiteElo "2143"]
[BlackElo "1914"]
[Annotator "RC"]
[PlyCount "108"]
[EventDate "2022.??.??"]
[TimeControl "60"]

1. e4 {[%emt 0:00:08]} c5 {[%emt 0:00:26]} 2. Nf3 {[%emt 0:00:19]} d6 {[%emt 0:
00:00]} 3. d4 {[%emt 0:00:13]} cxd4 {[%emt 0:00:04]} 4. Nxd4 {[%emt 0:00:06]}
Nf6 {[%emt 0:00:04]} 5. Nc3 {[%emt 0:00:05]} a6 {[%emt 0:00:04]} 6. Be2 {
[%emt 0:02:02]} e5 {[%emt 0:00:06]} 7. Nf3 {[%emt 0:01:28]} h6 {[%emt 0:02:04]}
8. O-O {[%emt 0:02:42]} Be7 {[%emt 0:00:18]} 9. Be3 {[%emt 0:04:07]} Be6 {
[%emt 0:07:36]} 10. Nd5 {[%emt 0:10:53]} Nbd7 {[%emt 0:01:47]} 11. Nxe7 {
[%emt 0:05:16]} Qxe7 {[%emt 0:00:02]} 12. Bd3 {[%emt 0:02:16]} O-O {[%emt 0:00:
00]} 13. c4 {[%emt 0:06:44]} Rac8 {[%emt 0:00:59]} 14. Qe2 {[%emt 0:00:45]} Nc5
{[%emt 0:10:06]} 15. Nd2 {[%emt 0:05:26]} Nxd3 {[%emt 0:09:56]} 16. Qxd3 {
[%emt 0:00:07]} Ng4 {[%emt 0:03:07]} 17. b3 {[%emt 0:12:54]} Qh4 {[%emt 0:00:
00]} 18. h3 {[%emt 0:06:46]} Nxe3 {[%emt 0:00:14]} 19. Qxe3 {[%emt 0:00:01]}
Rc6 {[%emt 0:08:12]} 20. a4 {[%emt 0:02:40]} Qg5 {[%emt 0:07:55]} 21. Qxg5 {
[%emt 0:06:30]} hxg5 {[%emt 0:00:01]} 22. a5 {[%emt 0:01:49]} g4 {[%emt 0:00:
00]} 23. hxg4 {[%emt 0:01:08]} Bxg4 {[%emt 0:00:02]} 24. Rfe1 {[%emt 0:03:14]}
Be6 {[%emt 0:02:55]} 25. Re3 {[%emt 0:00:12]} f5 {[%emt 0:00:36]} 26. exf5 {
[%emt 0:03:55]} Bxf5 {[%emt 0:01:41]} 27. Nf3 {[%emt 0:00:22]} Rc5 {[%emt 0:00:
00]} 28. Rd1 {[%emt 0:07:05]} Rf6 {[%emt 0:00:51]} 29. Rd5 {[%emt 0:00:05]} Rc6
{[%emt 0:02:27]} 30. Re1 {[%emt 0:10:13]} Be6 {[%emt 0:00:35]} 31. Rd2 {
[%emt 0:00:18]} Bg4 {[%emt 0:03:16]} 32. Nh2 {[%emt 0:00:12]} Bh5 {[%emt 0:00:
00]} 33. Nf1 {[%emt 0:00:06]} Rc5 {[%emt 0:02:17]} 34. Ng3 {[%emt 0:01:20]} Bg6
{[%emt 0:00:21]} 35. Red1 {[%emt 0:00:03]} Rxa5 {[%emt 0:03:05]} 36. Rxd6 {
[%emt 0:00:06]} Bc2 {[%emt 0:03:34]} 37. Rxf6 {[%emt 0:00:14]} gxf6 {[%emt 0:
00:00]} 38. Rd8+ {[%emt 0:00:23]} Kf7 {[%emt 0:00:30]} 39. Rd7+ {[%emt 0:00:04]
} Kg6 {[%emt 0:00:13]} 40. Rxb7 {[%emt 0:00:15]} Ra1+ {[%emt 0:00:56]} 41. Kh2
{[%emt 0:30:01]} Rb1 {[%emt 0:30:56]} 42. b4 {[%emt 0:01:28]} a5 {[%emt 0:00:
00]} 43. b5 {[%emt 0:01:10]} Bd3 {[%emt 0:00:00]} 44. c5 {[%emt 0:00:00]} Rxb5
{[%emt 0:00:00]} 45. c6 {[%emt 0:00:00]} Rc5 {[%emt 0:00:00]} 46. c7 {[%emt 0:
00:00]} a4 {[%emt 0:00:00]} 47. Ra7 {[%emt 0:00:00]} f5 {[%emt 0:00:00]} 48. f3
{[%emt 0:00:00]} f4 {[%emt 0:00:00]} 49. Nh1 {[%emt 0:00:00]} Rc2 {[%emt 0:00:
00]} 50. Nf2 {[%emt 0:00:00]} Bf5 {[%emt 0:00:00]} 51. Nh3 {[%emt 0:00:00]}
Bxh3 {[%emt 0:00:00]} 52. Kxh3 {[%emt 0:00:00]} a3 {[%emt 0:00:00]} 53. g3 {
[%emt 0:03:34]} fxg3 {[%emt 0:02:55]} 54. Kxg3 {[%emt 0:00:03]} Kf5 {[%emt 0:
00:00]} 1/2-1/2

[Event "44th Chess Olympiad Women 2022"]
[Site "Chennai"]
[Date "2022.07.31"]
[Round "3.35"]
[White "Deng, Jing Xin Crystal"]
[Black "Guerrero Rodriguez, Alejandra"]
[Result "1-0"]
[WhiteElo "1914"]
[BlackElo "2006"]
[Annotator "NA RC"]
[PlyCount "45"]
[EventDate "2022.??.??"]
[TimeControl "60"]

1. d4 {[%emt 0:00:07]} c5 {[%emt 0:00:47]} 2. d5 {[%emt 0:00:04]} Nf6 {[%emt 0:
00:00]} 3. c4 {[%emt 0:00:10]} g6 {[%emt 0:00:09]} 4. Nc3 {[%emt 0:00:19]} Bg7
{[%emt 0:00:17]} 5. e4 {[%emt 0:00:31]} d6 {[%emt 0:00:08]} 6. h3 {[%emt 0:00:
00]} O-O {[%emt 0:00:11]} 7. Bd3 {[%emt 0:00:19]} e6 {[%emt 0:01:17]} 8. Nf3 {
[%emt 0:00:09]} exd5 {[%emt 0:00:33]} 9. cxd5 {[%emt 0:00:06]} Re8 {[%emt 0:00:
00]} 10. O-O {[%emt 0:00:24]} Nbd7 {[%emt 0:01:06]} 11. Bf4 {[%emt 0:07:26]} c4
{[%emt 0:01:59]} 12. Bc2 {[%emt 0:20:40]} Nc5 {[%emt 0:01:01]} 13. Re1 {
[%emt 0:00:56]} b5 {[%emt 0:01:01]} 14. Nxb5 {[%emt 0:15:00]} Nfxe4 {[%emt 0:
00:00]} 15. Bxe4 {[%emt 0:03:21]} Nxe4 {[%emt 0:01:19]} 16. Nd2 {[%emt 0:08:23]
} Qb6 {[%emt 0:31:19]} 17. Nxe4 {[%emt 0:02:35]} Qxb5 {[%emt 0:02:30]} 18. Nxd6
{[%emt 0:00:16]} Rxe1+ {[%emt 0:02:15]} 19. Qxe1 {[%emt 0:00:02]} Qd7 {[%emt 0:
00:00]} 20. Nxc4 {[%emt 0:08:10]} Qxd5 {[%emt 0:08:02]} 21. Rd1 {[%emt 0:03:51]
} Qc6 {[%emt 0:12:42]} 22. Rd8+ {[%emt 0:00:46]} Bf8 {[%emt 0:00:02]} 23. Qb4 {
[%emt 0:00:29]} 1-0

[Event "44th Chess Olympiad Women 2022"]
[Site "Chennai"]
[Date "2022.07.31"]
[Round "3.35"]
[White "Guillen Cristobal, Sandra N"]
[Black "Lam, Ka Yan"]
[Result "1-0"]
[WhiteElo "1962"]
[BlackElo "1223"]
[Annotator "NA RC"]
[PlyCount "47"]
[EventDate "2022.??.??"]
[TimeControl "60"]

1. e4 {[%emt 0:00:04]} c5 {[%emt 0:00:35]} 2. Nf3 {[%emt 0:00:08]} d6 {[%emt 0:
00:00]} 3. d4 {[%emt 0:00:16]} cxd4 {[%emt 0:00:42]} 4. Nxd4 {[%emt 0:00:09]}
Nf6 {[%emt 0:00:26]} 5. Nc3 {[%emt 0:00:08]} a6 {[%emt 0:02:28]} 6. Be2 {
[%emt 0:00:55]} e5 {[%emt 0:02:01]} 7. Nb3 {[%emt 0:00:13]} Be6 {[%emt 0:01:23]
} 8. Bg5 {[%emt 0:03:04]} Be7 {[%emt 0:03:04]} 9. Qd2 {[%emt 0:01:45]} Nc6 {
[%emt 0:07:16]} 10. O-O {[%emt 0:01:52]} d5 {[%emt 0:06:31]} 11. Bxf6 {[%emt 0:
00:00]} d4 {[%emt 0:20:23]} 12. Bxe7 {[%emt 0:00:40]} Qxe7 {[%emt 0:05:01]} 13.
Nd5 {[%emt 0:01:52]} Qd6 {[%emt 0:02:23]} 14. c4 {[%emt 0:05:50]} O-O {[%emt 0:
00:00]} 15. f4 {[%emt 0:05:42]} f5 {[%emt 0:05:55]} 16. c5 {[%emt 0:03:25]} Qd8
{[%emt 0:00:52]} 17. Nb6 {[%emt 0:00:13]} Rb8 {[%emt 0:06:05]} 18. exf5 {
[%emt 0:00:52]} Bxf5 {[%emt 0:03:29]} 19. Bc4+ {[%emt 0:00:42]} Kh8 {[%emt 0:
00:00]} 20. fxe5 {[%emt 0:00:10]} d3 {[%emt 0:01:52]} 21. e6 {[%emt 0:03:25]}
Ne5 {[%emt 0:03:32]} 22. Bd5 {[%emt 0:00:36]} Qh4 {[%emt 0:13:59]} 23. Qf4 {
[%emt 0:04:25]} Qh5 {[%emt 0:05:37]} 24. Qxe5 {[%emt 0:00:27]} 1-0

[Event "44th Chess Olympiad Women 2022"]
[Site "Chennai"]
[Date "2022.07.31"]
[Round "3.35"]
[White "Leung, Hoi Ting"]
[Black "Avila Fraire, Ameyalli"]
[Result "0-1"]
[WhiteElo "1277"]
[BlackElo "1907"]
[Annotator "RC"]
[PlyCount "184"]
[EventDate "2022.??.??"]
[TimeControl "60"]

1. d4 {[%emt 0:00:03]} Nf6 {[%emt 0:00:11]} 2. Bf4 {[%emt 0:00:18]} g6 {
[%emt 0:01:35]} 3. Nc3 {[%emt 0:00:20]} Bg7 {[%emt 0:00:11]} 4. e4 {[%emt 0:00:
00]} d6 {[%emt 0:00:15]} 5. Qd2 {[%emt 0:00:38]} Nbd7 {[%emt 0:01:53]} 6. Nf3 {
[%emt 0:01:39]} c5 {[%emt 0:00:23]} 7. d5 {[%emt 0:02:01]} Rb8 {[%emt 0:03:49]}
8. Bc4 {[%emt 0:02:24]} Qa5 {[%emt 0:07:09]} 9. O-O {[%emt 0:05:17]} b5 {
[%emt 0:03:40]} 10. Bxb5 {[%emt 0:04:36]} Rxb5 {[%emt 0:00:34]} 11. Nxb5 {
[%emt 0:00:32]} Qxb5 {[%emt 0:00:07]} 12. e5 {[%emt 0:07:37]} dxe5 {[%emt 0:00:
00]} 13. Bxe5 {[%emt 0:04:00]} Nxe5 {[%emt 0:00:58]} 14. Nxe5 {[%emt 0:00:51]}
c4 {[%emt 0:08:26]} 15. c3 {[%emt 0:04:32]} Qxd5 {[%emt 0:02:20]} 16. Qxd5 {
[%emt 0:00:39]} Nxd5 {[%emt 0:00:06]} 17. Rfe1 {[%emt 0:03:10]} Be6 {[%emt 0:
00:00]} 18. Rad1 {[%emt 0:04:40]} O-O {[%emt 0:05:08]} 19. Nxc4 {[%emt 0:04:03]
} Nxc3 {[%emt 0:03:26]} 20. bxc3 {[%emt 0:01:40]} Bxc4 {[%emt 0:01:04]} 21.
Rxe7 {[%emt 0:00:50]} a6 {[%emt 0:05:19]} 22. Rc7 {[%emt 0:06:28]} Bxa2 {
[%emt 0:00:09]} 23. Ra1 {[%emt 0:01:03]} Rb8 {[%emt 0:01:21]} 24. Rc6 {[%emt 0:
00:00]} a5 {[%emt 0:00:39]} 25. Kf1 {[%emt 0:03:16]} Rb2 {[%emt 0:12:39]} 26.
Rc8+ {[%emt 0:03:46]} Bf8 {[%emt 0:02:38]} 27. Ra8 {[%emt 0:04:11]} Bc4+ {
[%emt 0:04:02]} 28. Kg1 {[%emt 0:01:07]} Rc2 {[%emt 0:01:57]} 29. R8xa5 {
[%emt 0:03:11]} Rxc3 {[%emt 0:04:46]} 30. Re5 {[%emt 0:04:51]} Rc2 {[%emt 0:00:
00]} 31. h3 {[%emt 0:04:49]} Kg7 {[%emt 0:06:08]} 32. Rd1 {[%emt 0:05:52]} Kf6
{[%emt 0:01:16]} 33. Re3 {[%emt 0:04:55]} Bc5 {[%emt 0:02:57]} 34. Rf3+ {
[%emt 0:01:45]} Kg7 {[%emt 0:00:09]} 35. Rd7 {[%emt 0:02:51]} Be6 {[%emt 0:00:
00]} 36. Rd1 {[%emt 0:00:56]} Bc8 {[%emt 0:02:42]} 37. Rf1 {[%emt 0:02:32]} Bb7
{[%emt 0:00:47]} 38. Rf4 {[%emt 0:00:57]} Ba6 {[%emt 0:02:23]} 39. Ra1 {
[%emt 0:00:37]} g5 {[%emt 0:05:45]} 40. Rf5 {[%emt 0:01:08]} Bc8 {[%emt 0:00:
00]} 41. Rxg5+ {[%emt 0:31:21]} Kh6 {[%emt 0:30:11]} 42. Rg8 {[%emt 0:00:00]}
Bb7 {[%emt 0:00:00]} 43. Rf1 {[%emt 0:00:00]} Ba6 {[%emt 0:00:00]} 44. Ra1 {
[%emt 0:00:00]} Rxf2 {[%emt 0:00:00]} 45. Kh2 {[%emt 0:00:00]} Bc4 {[%emt 0:00:
00]} 46. Rc1 {[%emt 0:00:00]} Bd6+ {[%emt 0:00:00]} 47. Kg1 {[%emt 0:00:00]}
Rf4 {[%emt 0:00:00]} 48. Kh1 {[%emt 0:00:00]} Be6 {[%emt 0:00:00]} 49. Rd1 {
[%emt 0:00:00]} Bc5 {[%emt 0:00:00]} 50. Rc1 {[%emt 0:01:19]} Bd4 {[%emt 0:00:
00]} 51. Re1 {[%emt 0:01:48]} Bc3 {[%emt 0:00:28]} 52. Rc1 {[%emt 0:00:56]} Be5
{[%emt 0:00:14]} 53. Re1 {[%emt 0:00:19]} f6 {[%emt 0:00:28]} 54. Re8 {[%emt 0:
00:00]} Bd5 {[%emt 0:00:31]} 55. Rd8 {[%emt 0:00:20]} Bc6 {[%emt 0:01:55]} 56.
Rg8 {[%emt 0:00:25]} Rf2 {[%emt 0:00:46]} 57. Rc1 {[%emt 0:00:50]} Bd5 {
[%emt 0:00:13]} 58. Rg4 {[%emt 0:01:13]} f5 {[%emt 0:00:49]} 59. Kg1 {[%emt 0:
00:00]} Rd2 {[%emt 0:01:01]} 60. Ra4 {[%emt 0:01:05]} Bxg2 {[%emt 0:00:53]} 61.
Rc5 {[%emt 0:00:26]} Bd4+ {[%emt 0:02:16]} 62. Rxd4 {[%emt 0:00:13]} Rxd4 {
[%emt 0:00:04]} 63. Kxg2 {[%emt 0:00:09]} Kg5 {[%emt 0:00:07]} 64. Kg3 {
[%emt 0:01:18]} Rd3+ {[%emt 0:00:11]} 65. Kg2 {[%emt 0:00:11]} h5 {[%emt 0:00:
00]} 66. Rc4 {[%emt 0:00:39]} h4 {[%emt 0:01:02]} 67. Ra4 {[%emt 0:00:24]} Rg3+
{[%emt 0:00:20]} 68. Kh2 {[%emt 0:00:18]} Re3 {[%emt 0:00:21]} 69. Kg2 {
[%emt 0:00:24]} Re4 {[%emt 0:00:30]} 70. Ra3 {[%emt 0:00:31]} Re2+ {[%emt 0:00:
00]} 71. Kf1 {[%emt 0:00:27]} Rh2 {[%emt 0:00:41]} 72. Kg1 {[%emt 0:00:25]} Rd2
{[%emt 0:00:46]} 73. Rc3 {[%emt 0:00:38]} Kf4 {[%emt 0:00:45]} 74. Rc4+ {
[%emt 0:00:55]} Kf3 {[%emt 0:00:24]} 75. Rc3+ {[%emt 0:00:25]} Ke4 {[%emt 0:00:
00]} 76. Rc4+ {[%emt 0:00:24]} Rd4 {[%emt 0:00:43]} 77. Rxd4+ {[%emt 0:00:41]}
Kxd4 {[%emt 0:00:05]} 78. Kf2 {[%emt 0:00:06]} Ke4 {[%emt 0:00:07]} 79. Ke2 {
[%emt 0:00:54]} f4 {[%emt 0:00:45]} 80. Kf2 {[%emt 0:00:24]} Ke5 {[%emt 0:00:
00]} 81. Kf3 {[%emt 0:00:46]} Kf5 {[%emt 0:00:05]} 82. Ke2 {[%emt 0:00:12]} Ke4
{[%emt 0:00:14]} 83. Kf2 {[%emt 0:00:30]} f3 {[%emt 0:00:06]} 84. Ke1 {[%emt 0:
00:00]} Ke3 {[%emt 0:00:13]} 85. Kf1 {[%emt 0:00:19]} f2 {[%emt 0:00:04]} 86.
Kg2 {[%emt 0:00:10]} Ke2 {[%emt 0:00:06]} 87. Kh2 {[%emt 0:00:09]} f1=R {
[%emt 0:00:12]} 88. Kg2 {[%emt 0:00:13]} Rf2+ {[%emt 0:00:10]} 89. Kg1 {
[%emt 0:00:15]} Kf3 {[%emt 0:00:04]} 90. Kh1 {[%emt 0:00:16]} Kg3 {[%emt 0:00:
00]} 91. Kg1 {[%emt 0:00:15]} Rf3 {[%emt 0:00:06]} 92. Kh1 {[%emt 0:00:21]}
Rf1# {[%emt 0:00:05]} 0-1